bitfinex/quotes_BTCUSD_20250320
["timestamp","ask_amount","ask_price","bid_price","bid_amount"]
[1742488978928,0.55169148,84020.0,84019.0,0.53353633]
[1742488979326,0.55169148,84020.0,84019.0,0.005]
[1742488979888,0.55169148,84020.0,83992.0,0.011905]
[1742488979889,0.250002,83999.0,83998.0,0.4119613]
[1742488980126,0.250002,83999.0,83998.0,0.53153633]
[1742488980318,0.25172169,83999.0,83998.0,0.53153633]
[1742488980525,0.55172169,83999.0,83998.0,0.11957503]
[1742488980696,0.55172169,83999.0,83998.0,0.14352474]
[1742488981304,0.30171969,83999.0,83998.0,0.14352474]
[1742488981514,0.55172169,83999.0,83998.0,0.14352474]
[1742488982075,0.55172169,83999.0,83998.0,0.15452474]
[1742488982278,0.55172169,83999.0,83998.0,0.14952474]
[1742488982499,0.00171969,83999.0,83998.0,0.39952974]
[1742488982727,0.238077,84007.0,84000.0,0.249998]
[1742488982913,0.238077,84007.0,84001.0,0.11957503]
[1742488983111,0.238079,84006.0,84002.0,0.238089]
[1742488983322,0.238077,84007.0,84003.0,0.35766103]
[1742488983534,0.238095,84000.0,83998.0,0.02894971]
[1742488983757,0.550002,83999.0,83998.0,0.005]
[1742488984392,0.550002,83999.0,83981.0,7e-07]
[1742488984393,0.250038,83987.0,83981.0,7e-07]
[1742488984594,0.011906,83985.0,83982.0,0.53153633]
[1742488984832,0.238143,83983.0,83982.0,0.53153633]
[1742488985041,0.250042,83986.0,83982.0,0.53153633]
[1742488985280,0.238138,83985.0,83982.0,0.53153633]
[1742488985482,0.238138,83985.0,83982.0,0.55586908]
[1742488985483,0.25005,83983.0,83982.0,0.55586908]
[1742488985700,0.238143,83983.0,83982.0,0.55586908]
[1742488985883,0.3,83994.0,83991.0,0.23812]
[1742488986111,0.011904,83999.0,83992.0,0.11957503]
[1742488986223,0.238115,83993.0,83992.0,0.11957503]
[1742488987691,0.25168241,83993.0,83992.0,0.11957503]
[1742488987898,0.00166241,83993.0,83992.0,0.11957503]
[1742488988080,0.23977741,83993.0,83992.0,0.11957503]
[1742488989006,0.23977741,83993.0,83992.0,0.12357503]
[1742488989202,0.23977741,83993.0,83992.0,0.12657503]
[1742488989400,0.25168241,83993.0,83992.0,0.12657503]
[1742488989578,0.55168241,83993.0,83992.0,0.007]
[1742488990393,0.62838241,83993.0,83992.0,0.007]
[1742488990592,0.57034886,83993.0,83992.0,0.007]
[1742488991071,0.55168241,83993.0,83992.0,0.007]
[1742488991483,0.55168241,83993.0,83992.0,0.003]
[1742488991660,0.550053,83982.0,83979.0,0.00017055]
[1742488992078,0.238135,83986.0,83981.0,0.14341715]
[1742488992383,0.311907,83982.0,83981.0,7e-07]
[1742488992508,0.550053,83982.0,83981.0,7e-07]
[1742488994508,0.550053,83982.0,83981.0,0.0030007]
[1742488995009,0.238143,83983.0,83981.0,0.11957573]
[1742488995215,0.011906,83990.0,83982.0,0.11957503]
[1742488995407,0.011906,83990.0,83983.0,0.238142]
[1742488995408,0.238137,83986.0,83983.0,0.238142]
[1742488995606,0.238137,83986.0,83982.0,0.13148203]
[1742488995607,0.3,83990.0,83987.0,0.23813]
[1742488995807,0.3,83990.0,83981.0,0.2391467]
[1742488995808,0.011903,84006.0,83997.0,0.011905]
[1742488996016,0.011904,84005.0,83998.0,0.35767503]
[1742488996167,0.011904,84005.0,83998.0,0.11957503]
[1742488996376,0.011905,83995.0,83988.0,0.4119613]
[1742488996602,0.250029,83990.0,83989.0,0.11957503]
[1742488996807,0.550032,83989.0,83988.0,0.4119613]
[1742488996981,0.250053,83982.0,83981.0,0.0070007]
[1742488997327,0.550053,83982.0,83981.0,0.0070007]
[1742488997732,0.550053,83982.0,83981.0,0.02627265]
[1742488998716,0.550053,83982.0,83981.0,0.02327265]
[1742488998919,0.550053,83982.0,83981.0,0.02427265]
[1742488999582,0.550053,83982.0,83981.0,0.0010007]
[1742488999777,0.5687219,83982.0,83981.0,0.0020007]
[1742488999977,0.5687219,83982.0,83971.0,0.001]
[1742488999978,0.011907,83980.0,83979.0,2.5e-07]
[1742489000179,0.550058,83980.0,83979.0,2.5e-07]
[1742489001735,0.553058,83980.0,83979.0,2.5e-07]
[1742489002107,0.554058,83980.0,83979.0,2.5e-07]
[1742489002624,0.553058,83980.0,83979.0,2.5e-07]
[1742489002820,0.55472116,83980.0,83979.0,2.5e-07]
[1742489004102,0.55772116,83980.0,83979.0,2.5e-07]
[1742489005151,0.57639241,83980.0,83979.0,2.5e-07]
[1742489010643,0.57339241,83980.0,83979.0,2.5e-07]
[1742489010852,0.69496744,83980.0,83979.0,2.5e-07]
[1742489011064,0.550133,83955.0,83941.0,0.001]
[1742489011272,0.550139,83953.0,83942.0,0.4119613]
[1742489011448,0.550139,83953.0,83950.0,0.02335786]
[1742489011823,0.55203834,83953.0,83950.0,0.02335786]
[1742489012194,0.55203834,83953.0,83941.0,0.001]
[1742489012394,0.55203834,83953.0,83952.0,0.03669219]
[1742489012820,0.30189934,83953.0,83952.0,0.03669219]
[1742489013017,0.55203834,83953.0,83952.0,0.03669219]
[1742489013713,0.55203834,83953.0,83952.0,0.04369219]
[1742489014103,0.55203834,83953.0,83952.0,0.03669219]
[1742489014305,0.55203834,83953.0,83952.0,0.01548]
[1742489014551,0.55203834,83953.0,83940.0,0.00511936]
[1742489014552,0.550175,83941.0,83940.0,0.00511936]
[1742489014862,0.550175,83941.0,83940.0,0.02849609]
[1742489015063,0.55206765,83941.0,83940.0,0.02849609]
[1742489016754,0.55206765,83941.0,83940.0,0.02949609]
[1742489016952,0.55206765,83941.0,83940.0,0.02849609]
[1742489017151,0.55206765,83941.0,83940.0,0.02949609]
[1742489017352,0.55206765,83941.0,83940.0,0.03049609]
[1742489017553,0.55206765,83941.0,83940.0,0.02949609]
[1742489017780,0.55206765,83941.0,83940.0,0.02849609]
[1742489017998,0.55206765,83941.0,83940.0,3.6e-07]
[1742489018332,0.24867387,83926.0,83925.0,0.0002491]
[1742489018531,0.54867387,83926.0,83925.0,0.0002491]
[1742489018710,0.5502145,83926.0,83925.0,0.0002491]
[1742489019715,0.5502145,83926.0,83925.0,0.0012491]
[1742489020254,0.30154063,83926.0,83925.0,0.0012491]
[1742489020461,0.30154063,83926.0,83925.0,0.35913213]
[1742489020671,0.30154063,83926.0,83925.0,0.37104713]
[1742489020672,0.00154063,83926.0,83925.0,0.37104713]
[1742489021032,0.238294,83930.0,83926.0,0.238305]
[1742489021211,0.250197,83934.0,83928.0,0.011914]
[1742489021212,0.250198,83934.0,83928.0,0.011914]
[1742489021426,0.00170744,83929.0,83928.0,0.250213]
[1742489021625,0.311913,83939.0,83928.0,0.250213]
[1742489021626,0.238291,83931.0,83928.0,0.35787403]
[1742489021939,0.238291,83931.0,83925.0,0.2534701]
[1742489021940,0.01362144,83930.0,83929.0,0.11957503]
[1742489022124,0.25191444,83930.0,83929.0,0.11957503]
[1742489022750,0.00170744,83930.0,83929.0,0.11957503]
[1742489022956,0.24000044,83930.0,83929.0,0.11957503]
[1742489023185,0.00170744,83930.0,83929.0,0.12257503]
[1742489023387,0.00170744,83930.0,83929.0,0.37278503]
[1742489023691,0.238266,83940.0,83936.0,0.238276]
[1742489023883,0.238252,83945.0,83937.0,0.13148803]
[1742489024104,0.238249,83946.0,83940.0,0.011913]
[1742489024265,0.250171,83942.0,83941.0,0.11957503]
[1742489024468,0.238256,83943.0,83941.0,0.11957503]
[1742489024866,0.238259,83942.0,83941.0,0.11957503]
[1742489025028,0.238256,83943.0,83941.0,0.11957503]
[1742489025236,0.238259,83942.0,83941.0,0.11957503]
[1742489025458,0.238259,83942.0,83938.0,0.4238743]
[1742489025459,0.238268,83939.0,83938.0,0.4115613]
[1742489025690,0.238266,83940.0,83938.0,0.4115613]
[1742489025900,0.238268,83939.0,83938.0,0.4115613]
[1742489026102,0.011912,83948.0,83940.0,0.238262]
[1742489026302,0.250153,83949.0,83942.0,0.238259]
[1742489026525,0.011911,83949.0,83943.0,0.35783103]
[1742489026725,0.238245,83947.0,83943.0,0.35783103]
[1742489027145,0.238251,83945.0,83943.0,0.11957503]
[1742489027343,0.238248,83946.0,83944.0,0.238252]
[1742489027545,0.238248,83946.0,83945.0,0.11957503]
[1742489027722,0.25016,83946.0,83945.0,0.11957503]
[1742489027933,0.250155,83948.0,83945.0,0.35782503]
[1742489028137,0.238246,83947.0,83945.0,0.11957503]
[1742489028338,0.238248,83946.0,83945.0,0.11957503]
[1742489028745,0.25016,83946.0,83945.0,0.001]
[1742489029092,0.238231,83952.0,83946.0,0.238248]
[1742489029228,2.981501,83992.0,83946.0,0.238248]
[1742489029229,0.238242,83949.0,83947.0,0.11957503]
[1742489029458,0.250154,83948.0,83947.0,0.11957503]
[1742489029835,0.238242,83949.0,83947.0,0.11957503]
[1742489030041,0.250124,83959.0,83952.0,0.011911]
[1742489030241,0.250124,83959.0,83953.0,0.11957503]
[1742489030242,0.238223,83955.0,83953.0,0.11957503]
[1742489030466,0.238225,83954.0,83953.0,0.11957503]
[1742489030703,0.238209,83960.0,83953.0,0.11957503]
[1742489030922,0.238211,83959.0,83954.0,0.238224]
[1742489031171,0.238217,83957.0,83955.0,0.11957503]
[1742489031569,0.238211,83959.0,83955.0,0.11957503]
[1742489031775,0.238207,83961.0,83958.0,0.01191]
[1742489031980,0.238209,83960.0,83959.0,0.11957503]
[1742489032159,0.250111,83963.0,83959.0,0.35778603]
[1742489032364,0.01191,83963.0,83959.0,0.35778603]
[1742489032567,0.238206,83961.0,83959.0,0.11957503]
[1742489032723,0.00181411,83960.0,83959.0,0.11957503]
[1742489032947,0.24002211,83960.0,83959.0,0.11957503]
[1742489033164,0.250131,83956.0,83955.0,0.006]
[1742489033368,0.25194276,83956.0,83955.0,0.12257503]
[1742489033568,0.25194276,83956.0,83955.0,0.003]
[1742489033751,0.25194276,83956.0,83953.0,0.02392958]
[1742489033752,0.250136,83954.0,83953.0,0.02392958]
[1742489034195,0.2519467,83954.0,83953.0,0.02392958]
[1742489035672,0.2519467,83954.0,83953.0,0.002]
[1742489035940,0.5519467,83954.0,83953.0,0.002]
[1742489036144,0.5519467,83954.0,83953.0,0.003]
[1742489036523,0.57062224,83954.0,83953.0,0.003]
[1742489042265,0.57062224,83954.0,83953.0,0.002]
[1742489042462,0.250181,83939.0,83938.0,0.02435014]
[1742489042991,0.25197427,83939.0,83938.0,0.02435014]
[1742489043279,0.25197427,83939.0,83938.0,0.0001693]
[1742489043530,0.55197427,83939.0,83938.0,0.0001693]
[1742489043936,0.6715493,83939.0,83938.0,0.0010003]
[1742489044127,0.6715493,83939.0,83925.0,0.0002491]
[1742489044128,0.011915,83926.0,83925.0,0.0002491]
[1742489044349,0.55022,83926.0,83925.0,0.0002491]
[1742489044468,0.55199872,83926.0,83925.0,0.0002491]
[1742489045079,0.30177872,83926.0,83925.0,0.0002491]
[1742489045286,0.55199872,83926.0,83925.0,0.0002491]
[1742489045617,0.25199872,83926.0,83925.0,0.0002491]
[1742489045949,0.00177872,83926.0,83925.0,0.37004713]
[1742489046290,0.011914,83932.0,83927.0,0.250216]
[1742489046500,0.011914,83931.0,83928.0,0.11957503]
[1742489046881,0.25021,83929.0,83928.0,0.11957503]
[1742489047152,0.238296,83929.0,83928.0,0.11957503]
[1742489047355,0.25021,83929.0,83928.0,0.11957503]
[1742489047697,0.25022,83926.0,83925.0,0.0012491]
[1742489047903,0.25022,83926.0,83925.0,0.0002491]
[1742489048108,0.25185785,83926.0,83925.0,0.0002491]
[1742489049195,0.55185785,83926.0,83925.0,1e-07]
[1742489049409,0.550238,83920.0,83919.0,2e-07]
[1742489050133,0.55187585,83920.0,83919.0,2e-07]
[1742489050349,0.55187585,83920.0,83914.0,3e-07]
[1742489050350,0.550252,83915.0,83914.0,3e-07]
[1742489050727,0.55188985,83915.0,83914.0,3e-07]
[1742489052006,0.00163785,83915.0,83914.0,0.35791433]
[1742489052267,0.00163785,83915.0,83914.0,0.36983033]
[1742489052469,0.238325,83919.0,83915.0,0.238334]
[1742489052677,0.238328,83918.0,83916.0,0.11957503]
[1742489052849,0.23833,83917.0,83916.0,0.11957503]
[1742489053050,0.00159997,83918.0,83917.0,0.23833]
[1742489053250,0.238327,83918.0,83917.0,0.11957503]
[1742489053449,0.238288,83932.0,83928.0,0.238298]
[1742489053674,0.011913,83940.0,83931.0,0.011914]
[1742489053874,0.11597259,83957.0,83950.0,0.235754]
[1742489054086,0.11597259,83957.0,83935.0,1.5]
[1742489054087,0.250148,83951.0,83942.0,0.238259]
[1742489054258,0.250166,83944.0,83943.0,0.11957503]
[1742489054634,0.48673826,83952.0,83944.0,0.238254]
[1742489054851,0.238233,83952.0,83945.0,0.13148703]
[1742489055077,0.01191,83960.0,83952.0,0.250141]
[1742489055295,0.0053384,83954.0,83952.0,0.23823]
[1742489055510,0.0053384,83954.0,83953.0,0.13148603]
[1742489055966,0.0053384,83954.0,83953.0,0.59432942]
[1742489056204,0.0003384,83970.0,83969.0,0.011909]
[1742489056416,0.0003384,83970.0,83969.0,0.78360964]
[1742489056625,0.0003384,83970.0,83969.0,0.78122833]
[1742489057242,0.2385184,83970.0,83969.0,0.53113633]
[1742489057462,0.2385184,83970.0,83969.0,0.55508991]
[1742489057463,0.0003384,83970.0,83969.0,0.55508991]
[1742489057668,0.0003384,83970.0,83969.0,0.55908991]
[1742489058074,0.0003384,83970.0,83969.0,0.56699891]
[1742489060456,0.0003384,83970.0,83969.0,0.75159891]
[1742489060638,0.0003384,83970.0,83969.0,0.74859891]
[1742489060986,0.0003384,83970.0,83969.0,0.82313976]
[1742489061201,0.0003384,83970.0,83969.0,0.84813976]
[1742489061405,0.23808,84006.0,83969.0,0.84813976]
[1742489061406,0.011903,84009.0,83999.0,0.250002]
[1742489061611,0.19083921,84000.0,83999.0,0.36957703]
[1742489062185,0.1891107,84000.0,83999.0,0.36957703]
[1742489062759,0.1891107,84000.0,83999.0,0.37257703]
[1742489063170,0.1891107,84000.0,83999.0,0.47257703]
[1742489063380,0.0122354,84054.0,84034.0,0.1]
[1742489063620,0.0122376,84038.0,84037.0,0.11957503]
[1742489063827,0.0119,84030.0,84022.0,0.011901]
[1742489064033,0.011899,84036.0,84025.0,0.249923]
[1742489064237,0.00189176,84029.0,84027.0,0.249918]
[1742489064492,0.2502256,84038.0,84025.0,0.011901]
[1742489064493,0.249909,84031.0,84028.0,1.52416835]
[1742489064900,0.249938,84021.0,84014.0,0.249955]
[1742489065100,0.23803,84023.0,84019.0,0.238041]
[1742489065301,0.00192648,84020.0,84018.0,0.011902]
[1742489065509,0.238035,84021.0,84019.0,0.11957503]
[1742489065710,0.011903,84012.0,84005.0,0.011904]
[1742489065982,0.249966,84012.0,84006.0,0.11957503]
[1742489066205,0.249954,84015.0,84014.0,0.003]
[1742489066411,0.249954,84015.0,84014.0,0.11957503]
[1742489066625,0.249954,84015.0,84005.0,0.249985]
[1742489066626,0.011904,84000.0,83990.0,0.035761]
[1742489066842,0.011904,83999.0,83993.0,0.250017]
[1742489067066,0.011904,84000.0,83995.0,0.238109]
[1742489067274,0.238098,83999.0,83998.0,0.02350239]
[1742489067509,0.238098,83999.0,83998.0,0.14307742]
[1742489067715,0.250002,83999.0,83998.0,0.02350239]
[1742489069142,0.250002,83999.0,83998.0,0.02450239]
[1742489069363,0.250002,83999.0,83998.0,0.02350239]
[1742489069832,0.250002,83999.0,83998.0,0.001]
[1742489070062,0.238093,84001.0,83998.0,0.001]
[1742489070288,0.238097,84000.0,83999.0,0.11957503]
[1742489070744,0.250001,84000.0,83999.0,0.11957503]
[1742489070922,0.249991,84003.0,83999.0,0.35767303]
[1742489071269,0.011904,84000.0,83999.0,0.11957503]
[1742489071383,0.011904,84000.0,83998.0,0.02526769]
[1742489071384,0.250002,83999.0,83998.0,0.02426769]
[1742489071879,0.250002,83999.0,83998.0,0.02526769]
[1742489072080,0.250002,83999.0,83998.0,0.02426769]
[1742489072864,0.550002,83999.0,83998.0,0.02426769]
[1742489073078,0.550002,83999.0,83998.0,0.02626769]
[1742489073257,0.631702,83999.0,83998.0,0.002]
[1742489073457,0.3,83982.0,83966.0,0.4112229]
[1742489073880,0.0817,83999.0,83968.0,0.11957503]
[1742489073881,0.011908,83976.0,83968.0,0.11957503]
[1742489074116,0.011908,83976.0,83969.0,0.23818]
[1742489074117,0.238172,83973.0,83969.0,0.23818]
[1742489074327,0.250094,83968.0,83967.0,0.4112229]
[1742489074551,0.250094,83968.0,83967.0,0.53079793]
[1742489074776,0.01191,83959.0,83955.0,0.4112229]
[1742489075048,0.01191,83960.0,83956.0,0.11957503]
[1742489075304,0.3,83968.0,83965.0,0.011909]
[1742489075535,0.3,83972.0,83966.0,0.11957503]
[1742489075785,0.3,83969.0,83967.0,0.002]
[1742489076031,0.3,83969.0,83968.0,0.11957503]
[1742489076275,0.011908,83974.0,83968.0,0.11957503]
[1742489076276,0.011907,83979.0,83971.0,0.011908]
[1742489076518,0.011907,83979.0,83973.0,0.238166]
[1742489076760,0.011908,83977.0,83974.0,0.11957503]
[1742489077007,0.25007,83977.0,83974.0,0.11957503]
[1742489077269,0.23815,83981.0,83974.0,0.11957503]
[1742489077270,0.011907,83983.0,83974.0,0.11957503]
[1742489077538,0.011907,83979.0,83974.0,0.11957503]
[1742489077779,0.011908,83975.0,83974.0,0.11957503]
[1742489078470,0.00166781,83975.0,83974.0,0.11957503]
[1742489079454,0.00166781,83975.0,83974.0,0.12057503]
[1742489079653,0.00166781,83975.0,83974.0,0.12257503]
[1742489080278,0.01357581,83975.0,83974.0,0.12257503]
[1742489080489,0.01357581,83975.0,83974.0,0.14654122]
[1742489081956,0.01357581,83975.0,83974.0,0.14671032]
[1742489084154,0.01357581,83975.0,83974.0,1.64671032]
[1742489085689,0.25174181,83975.0,83974.0,1.64671032]
[1742489086110,0.25174181,83975.0,83974.0,1.89678632]
[1742489086111,0.00166781,83975.0,83974.0,1.89678632]
[1742489086569,0.238106,83997.0,83993.0,0.238114]
[1742489086776,0.238082,84005.0,83996.0,0.238106]
[1742489086777,0.011904,84004.0,83996.0,0.238106]
[1742489086982,0.011904,84004.0,83992.0,0.011905]
[1742489086983,0.00166777,83996.0,83992.0,0.011905]
[1742489087189,0.238103,83997.0,83993.0,0.35768903]
[1742489087398,0.00166777,83995.0,83994.0,0.238112]
[1742489087605,0.476066,84022.0,83994.0,0.238112]
[1742489087606,0.249968,84011.0,84006.0,0.011903]
[1742489087827,0.011903,84009.0,84007.0,0.11957503]
[1742489087981,0.238082,84005.0,84001.0,0.23809]
[1742489088158,0.011903,84009.0,84002.0,0.13147903]
[1742489088361,0.249957,84015.0,84008.0,0.238072]
[1742489088572,0.238086,84003.0,84002.0,0.11957503]
[1742489088780,0.24999,84003.0,84002.0,0.11957503]
[1742489088953,0.249982,84006.0,84002.0,0.11957503]
[1742489089309,0.011903,84006.0,84002.0,0.38244913]
[1742489089509,0.011902,84015.0,84006.0,0.011903]
[1742489089728,0.238066,84011.0,84007.0,0.36955303]
[1742489089928,0.3,84012.0,84010.0,0.238066]
[1742489090149,0.0003382,84019.0,84018.0,0.249946]
[1742489090348,0.0003382,84019.0,84018.0,0.11957503]
[1742489090349,0.2383792,84019.0,84018.0,0.11957503]
[1742489090574,0.0003382,84019.0,84018.0,0.35761903]
[1742489090780,0.0003382,84019.0,84018.0,0.36952103]
[1742489091807,0.0003382,84019.0,84018.0,0.37252103]
[1742489092410,0.0003382,84019.0,84018.0,0.39629382]
[1742489093025,0.0003382,84019.0,84018.0,0.14634782]
[1742489093228,0.0003382,84019.0,84018.0,0.15824982]
[1742489093428,0.00204794,84019.0,84018.0,0.39629382]
[1742489093670,0.0003382,84019.0,84018.0,0.38439182]
[1742489093875,0.0003382,84019.0,84018.0,1.88439182]
[1742489094049,0.0003382,84019.0,84018.0,1.89629382]
[1742489094277,0.0003382,84019.0,84018.0,1.90029382]
[1742489095518,0.0003382,84019.0,84018.0,1.65034782]
[1742489095716,0.0003382,84019.0,84018.0,1.90029382]
[1742489095916,0.00204794,84019.0,84018.0,1.90029382]
[1742489096118,0.0003382,84019.0,84018.0,1.90029382]
[1742489096549,0.2502812,84019.0,84018.0,1.65034782]
[1742489096965,0.25211944,84019.0,84018.0,1.65034782]
[1742489097459,0.25211944,84019.0,84018.0,1.64634782]
[1742489097696,0.25211944,84019.0,84018.0,1.64934782]
[1742489098083,0.25211944,84019.0,84018.0,1.64634782]
[1742489098289,0.25211944,84019.0,84018.0,1.64734782]
[1742489098899,0.25211944,84019.0,84018.0,1.64434782]
[1742489099102,0.2502812,84019.0,84018.0,1.64434782]
[1742489099312,0.2502812,84019.0,84018.0,1.64534782]
[1742489099512,0.2521132,84019.0,84018.0,1.64534782]
[1742489099715,0.2502812,84019.0,84018.0,1.64534782]
[1742489100273,0.5502812,84019.0,84018.0,1.502]
[1742489100472,0.250002,83999.0,83998.0,0.0001691]
[1742489100766,0.250002,83999.0,83998.0,0.14307115]
[1742489100767,0.00183217,83999.0,83998.0,0.14307115]
[1742489100968,0.00183217,83999.0,83998.0,0.39307615]
[1742489101168,0.249979,84007.0,84003.0,0.1]
[1742489101374,0.249985,84005.0,84004.0,0.11957503]
[1742489101818,0.23989597,84005.0,83998.0,0.02349612]
[1742489102078,0.23989597,84005.0,84004.0,0.11957503]
[1742489102079,0.00181497,84005.0,84004.0,0.11957503]
[1742489102222,0.249985,84005.0,84004.0,0.11957503]
[1742489102435,0.00181065,84005.0,84004.0,0.11957503]
[1742489102777,0.23989165,84005.0,84004.0,0.11957503]
[1742489102984,0.250002,83999.0,83998.0,0.02549612]
[1742489103186,0.250002,83999.0,83998.0,0.14307115]
[1742489103393,0.55178387,83999.0,83998.0,0.02349612]
[1742489103956,0.55178387,83999.0,83998.0,1.52349612]
[1742489105661,0.55178387,83999.0,83998.0,0.02649612]
[1742489105901,0.55178387,83999.0,83998.0,0.0031691]
[1742489106304,0.55178387,83999.0,83998.0,0.0011691]
[1742489106726,0.55178387,83999.0,83998.0,0.0021691]
[1742489107350,0.55178387,83999.0,83998.0,1e-07]
[1742489107555,0.6713589,83999.0,83998.0,1e-07]
[1742489108238,0.6713589,83999.0,83978.0,0.02405813]
[1742489108239,0.550061,83979.0,83978.0,0.02405813]
[1742489108682,0.55182066,83979.0,83978.0,0.14363316]
[1742489108893,0.55182066,83979.0,83978.0,0.02405813]
[1742489109312,0.550074,83975.0,83974.0,0.0001691]
[1742489109746,0.55180498,83975.0,83974.0,0.0001691]
[1742489111285,0.55180498,83975.0,83974.0,1e-07]
[1742489111792,0.55180498,83975.0,83974.0,0.0030001]
[1742489112021,0.55180498,83975.0,83974.0,0.0020001]
[1742489112260,0.55180498,83975.0,83974.0,0.11957513]
[1742489112261,0.01363898,83975.0,83974.0,0.11957513]
[1742489112482,0.01463898,83975.0,83974.0,0.11957513]
[1742489112685,0.01563898,83975.0,83974.0,0.11957513]
[1742489112885,0.01563898,83975.0,83974.0,1e-07]
[1742489113299,0.31463898,83975.0,83974.0,1e-07]
[1742489114036,0.39583898,83975.0,83974.0,1e-07]
[1742489114241,0.44513898,83975.0,83974.0,1e-07]
[1742489114457,0.31463898,83975.0,83974.0,1e-07]
[1742489114859,0.31463898,83975.0,83974.0,0.0020001]
[1742489115233,0.31463898,83975.0,83974.0,1e-07]
[1742489115634,0.3323095,83975.0,83974.0,1e-07]
[1742489115936,0.3323095,83975.0,83974.0,0.0020001]
[1742489116390,0.3323095,83975.0,83974.0,1e-07]
[1742489117249,0.5704755,83975.0,83974.0,1e-07]
[1742489118623,0.5714755,83975.0,83974.0,1e-07]
[1742489118848,0.5734755,83975.0,83974.0,1e-07]
[1742489119213,0.5764755,83975.0,83974.0,1e-07]
[1742489119855,0.5738139,83975.0,83974.0,1e-07]
[1742489121254,0.5768139,83975.0,83974.0,1e-07]
[1742489122182,0.5738139,83975.0,83974.0,1e-07]
[1742489122604,0.77348893,83975.0,83974.0,1e-07]
[1742489123079,0.80591841,83975.0,83974.0,1e-07]
[1742489123527,0.80391841,83975.0,83974.0,1e-07]
[1742489124234,0.80691841,83975.0,83974.0,1e-07]
[1742489124523,0.80491841,83975.0,83974.0,1e-07]
[1742489125210,0.68834338,83975.0,83974.0,1e-07]
[1742489125708,0.80491841,83975.0,83974.0,1e-07]
[1742489125933,0.80191841,83975.0,83974.0,1e-07]
[1742489126136,0.81191841,83975.0,83974.0,0.0010001]
[1742489126363,0.8255918,83975.0,83974.0,1e-07]
[1742489126686,0.8295918,83975.0,83974.0,1e-07]
[1742489126943,0.8255918,83975.0,83974.0,1e-07]
[1742489127402,0.550133,83955.0,83954.0,0.0001692]
[1742489127772,0.55172571,83955.0,83954.0,0.0001692]
[1742489128180,0.57039983,83955.0,83954.0,0.0001692]
[1742489129604,0.56880712,83955.0,83954.0,0.0001692]
[1742489131555,0.57037567,83955.0,83954.0,0.0001692]
[1742489132139,0.25170155,83955.0,83954.0,0.0001692]
[1742489133084,0.55170155,83955.0,83954.0,0.0001692]
[1742489133350,0.55170155,83955.0,83954.0,0.0021692]
[1742489133644,0.55170155,83955.0,83954.0,0.0001692]
[1742489133928,0.25170155,83955.0,83954.0,0.0021692]
[1742489134175,0.25170155,83955.0,83954.0,0.0041692]
[1742489134379,0.25170155,83955.0,83954.0,0.0021692]
[1742489135182,0.25170155,83955.0,83954.0,0.0001692]
[1742489135886,0.25170155,83955.0,83954.0,0.0021692]
[1742489136109,0.25170155,83955.0,83954.0,0.0031692]
[1742489136650,0.23979055,83955.0,83954.0,0.12274423]
[1742489136927,0.25170155,83955.0,83954.0,0.12274423]
[1742489137165,0.250133,83955.0,83954.0,0.12274423]
[1742489137366,0.2517082,83955.0,83954.0,0.12274423]
[1742489138146,0.2517082,83955.0,83954.0,0.0031692]
[1742489138619,0.5517082,83955.0,83954.0,0.0031692]
[1742489142450,0.5517082,83955.0,83954.0,0.0021692]
[1742489142935,0.0015752,83955.0,83954.0,0.12174423]
[1742489143165,0.2517082,83955.0,83954.0,0.12174423]
[1742489143420,0.250133,83955.0,83954.0,0.12174423]
[1742489143682,0.55170716,83955.0,83954.0,0.0021692]
[1742489143926,0.55170716,83955.0,83954.0,0.0001692]
[1742489144141,0.55170716,83955.0,83954.0,0.11974423]
[1742489144386,0.30157416,83955.0,83954.0,0.36988023]
[1742489144615,0.25170716,83955.0,83954.0,0.11974423]
[1742489144855,0.25170716,83955.0,83954.0,1.61974423]
[1742489145120,0.25170716,83955.0,83954.0,1.62274423]
[1742489145348,0.25170716,83955.0,83954.0,1.62174423]
[1742489145791,0.25170716,83955.0,83954.0,1.62474423]
[1742489146223,0.25170716,83955.0,83954.0,1.62274423]
[1742489146634,0.25170716,83955.0,83954.0,1.62574423]
[1742489147552,0.00157416,83955.0,83954.0,1.62574423]
[1742489147752,0.23979616,83955.0,83954.0,1.62574423]
[1742489147991,0.25170716,83955.0,83954.0,1.62574423]
[1742489148230,0.23979616,83955.0,83954.0,1.62574423]
[1742489148504,0.25170716,83955.0,83954.0,1.5061692]
[1742489148778,0.55170716,83955.0,83954.0,0.0061692]
[1742489149545,0.55170716,83955.0,83954.0,0.0031692]
[1742489149956,0.55170716,83955.0,83954.0,0.0011692]
[1742489150183,0.63030716,83955.0,83954.0,2e-07]
[1742489150402,0.85088219,83955.0,83954.0,2e-07]
[1742489150622,0.74988219,83955.0,83954.0,2e-07]
[1742489150835,0.74830803,83955.0,83954.0,2e-07]
[1742489151286,0.550186,83937.0,83936.0,0.02383059]
[1742489151521,0.250231,83922.0,83921.0,0.10609917]
[1742489154125,0.250243,83918.0,83917.0,0.02357019]
[1742489154316,0.238316,83922.0,83921.0,0.001]
[1742489154559,0.238316,83922.0,83921.0,1.62057503]
[1742489154766,0.238316,83922.0,83921.0,1.62157503]
[1742489154960,0.250231,83922.0,83921.0,1.62157503]
[1742489155172,0.250231,83922.0,83921.0,1.5]
[1742489155396,0.550231,83922.0,83921.0,1.5]
[1742489155625,0.3,83922.0,83921.0,1.504]
[1742489155821,0.3,83922.0,83921.0,1.86189403]
[1742489155989,0.238266,83940.0,83923.0,0.250225]
[1742489156190,0.3,83928.0,83925.0,0.011915]
[1742489156402,0.3,83928.0,83927.0,0.250217]
[1742489156603,0.3,83928.0,83927.0,0.36979203]
[1742489156808,0.250162,83946.0,83936.0,0.250189]
[1742489157005,0.011913,83940.0,83936.0,0.11957503]
[1742489157180,0.011913,83941.0,83937.0,0.35784803]
[1742489157382,0.250174,83942.0,83937.0,0.11957503]
[1742489157641,0.238259,83942.0,83939.0,0.238267]
[1742489157862,0.250175,83941.0,83940.0,0.11957503]
[1742489158112,0.238259,83942.0,83940.0,0.11957503]
[1742489158336,0.250175,83941.0,83940.0,0.11957503]
[1742489158588,0.250196,83934.0,83933.0,0.4112229]
[1742489158822,0.238309,83925.0,83922.0,0.4112229]
[1742489159058,0.250205,83931.0,83924.0,0.250225]
[1742489159292,0.011913,83940.0,83931.0,0.011914]
[1742489159545,0.238271,83938.0,83934.0,0.011914]
[1742489159819,0.238271,83938.0,83931.0,0.4231369]